[Event "*** SCC Grand Prix: Titled Tuesday Blitz"]
[Site "Chess.com"]
[Date "2020.08.25"]
[Round "2"]
[White "gross-aleks"]
[Black "David_Paravyan"]
[Result "0-1"]
[WhiteElo "2582"]
[BlackElo "2977"]
[TimeControl "180+1"]
[EndTime "10:18:19 PDT"]
[Termination "David_Paravyan won by resignation"]

1. c4 {[%clk 0:03:00.9]} 1... g6 {[%clk 0:02:57.1]} 2. d4 {[%clk 0:02:59.4]}
2... Bg7 {[%clk 0:02:57.4]} 3. Nc3 {[%clk 0:02:59.3]} 3... d6 {[%clk 0:02:57.7]}
4. g3 {[%clk 0:02:56.9]} 4... f5 {[%clk 0:02:52.3]} 5. Bg2 {[%clk 0:02:56.3]}
5... Nf6 {[%clk 0:02:53]} 6. Bg5 {[%clk 0:02:52.4]} 6... O-O {[%clk 0:02:50]} 7.
Qd2 {[%clk 0:02:51.4]} 7... Nc6 {[%clk 0:02:48]} 8. Nf3 {[%clk 0:02:27.7]} 8...
Ne4 {[%clk 0:02:23.5]} 9. Nxe4 {[%clk 0:02:11.9]} 9... fxe4 {[%clk 0:02:24.4]}
10. Nh4 {[%clk 0:02:06.1]} 10... d5 {[%clk 0:02:24.8]} 11. O-O {[%clk
0:01:44.2]} 11... Nxd4 {[%clk 0:02:03.8]} 12. cxd5 {[%clk 0:01:40.1]} 12... Qxd5
{[%clk 0:01:49.4]} 13. Bxe7 {[%clk 0:01:37.6]} 13... Bg4 {[%clk 0:01:49.4]} 14.
f3 {[%clk 0:01:25.3]} 14... exf3 {[%clk 0:00:41.4]} 15. exf3 {[%clk 0:01:22.5]}
15... Rxf3 {[%clk 0:00:41.7]} 16. Bxf3 {[%clk 0:01:12.3]} 16... Bxf3 {[%clk
0:00:39.6]} 17. Rae1 {[%clk 0:01:07.8]} 17... Re8 {[%clk 0:00:35.1]} 18. Bg5
{[%clk 0:00:27.3]} 18... Ne2+ {[%clk 0:00:32.2]} 19. Rxe2 {[%clk 0:00:26.9]}
19... Rxe2 {[%clk 0:00:31]} 20. Qxd5+ {[%clk 0:00:19.9]} 20... Bxd5 {[%clk
0:00:31.9]} 21. Rf2 {[%clk 0:00:17.7]} 21... Bd4 {[%clk 0:00:31.8]} 0-1

[Event "*** SCC Grand Prix: Titled Tuesday Blitz"]
[Site "Chess.com"]
[Date "2020.08.25"]
[Round "2"]
[White "smshk35"]
[Black "Siri20"]
[Result "0-1"]
[WhiteElo "2472"]
[BlackElo "2706"]
[TimeControl "180+1"]
[EndTime "10:18:20 PDT"]
[Termination "Siri20 won by resignation"]

1. e4 {[%clk 0:03:00.9]} 1... c5 {[%clk 0:02:59.3]} 2. Nf3 {[%clk 0:03:00.8]}
2... d6 {[%clk 0:02:59.1]} 3. d4 {[%clk 0:03:01.1]} 3... cxd4 {[%clk 0:03:00]}
4. Nxd4 {[%clk 0:03:01.9]} 4... Nf6 {[%clk 0:03:00.2]} 5. Nc3 {[%clk 0:03:02.4]}
5... g6 {[%clk 0:03:00.8]} 6. Be3 {[%clk 0:03:02]} 6... Bg7 {[%clk 0:03:01.2]}
7. f3 {[%clk 0:03:02.6]} 7... O-O {[%clk 0:03:01.6]} 8. Qd2 {[%clk 0:03:03]}
8... Nc6 {[%clk 0:03:02.1]} 9. O-O-O {[%clk 0:03:02.9]} 9... Nxd4 {[%clk
0:03:02]} 10. Bxd4 {[%clk 0:03:03]} 10... Be6 {[%clk 0:03:02.9]} 11. g4 {[%clk
0:02:55.5]} 11... Qa5 {[%clk 0:03:02.7]} 12. Kb1 {[%clk 0:02:41.2]} 12... Rfc8
{[%clk 0:03:02.1]} 13. Nd5 {[%clk 0:02:28.9]} 13... Qxd2 {[%clk 0:02:58.5]} 14.
Nxf6+ {[%clk 0:02:28.6]} 14... Bxf6 {[%clk 0:02:59.4]} 15. Rxd2 {[%clk
0:02:28.8]} 15... Bxd4 {[%clk 0:02:59.3]} 16. Rxd4 {[%clk 0:02:29.7]} 16... Rc5
{[%clk 0:02:59.3]} 17. h4 {[%clk 0:02:23.9]} 17... Rac8 {[%clk 0:02:58.3]} 18.
Rd2 {[%clk 0:02:23.7]} 18... Kg7 {[%clk 0:02:50.9]} 19. Be2 {[%clk 0:02:14.4]}
19... h6 {[%clk 0:02:49.3]} 20. c3 {[%clk 0:02:10.1]} 20... Kf6 {[%clk
0:02:48.1]} 21. Rd4 {[%clk 0:02:10]} 21... Ke5 {[%clk 0:02:47.4]} 22. h5 {[%clk
0:02:08.1]} 22... g5 {[%clk 0:02:47.1]} 23. Kc2 {[%clk 0:02:05]} 23... b5 {[%clk
0:02:39.8]} 24. a3 {[%clk 0:02:04.4]} 24... a5 {[%clk 0:02:39.1]} 25. Kd2 {[%clk
0:02:04.4]} 25... Kf4 {[%clk 0:02:37.2]} 26. Re1 {[%clk 0:02:01.9]} 26... Re5
{[%clk 0:02:31.6]} 27. Bd1 {[%clk 0:01:58.3]} 27... Rc6 {[%clk 0:02:17.7]} 28.
Ke2 {[%clk 0:01:57.4]} 28... Rcc5 {[%clk 0:02:09.8]} 29. Kf2 {[%clk 0:01:56.5]}
29... Rc6 {[%clk 0:02:03]} 30. Be2 {[%clk 0:01:55.2]} 30... Rb6 {[%clk
0:01:59.9]} 31. Bf1 {[%clk 0:01:53.2]} 31... Bd7 {[%clk 0:01:56.8]} 32. Rd5
{[%clk 0:01:40.7]} 32... b4 {[%clk 0:01:50.7]} 33. axb4 {[%clk 0:01:37.3]} 33...
axb4 {[%clk 0:01:50.3]} 34. c4 {[%clk 0:01:31.4]} 34... Ra6 {[%clk 0:01:44.4]}
35. c5 {[%clk 0:01:30.7]} 35... Ra5 {[%clk 0:01:37.3]} 36. cxd6 {[%clk
0:01:24.7]} 36... Raxd5 {[%clk 0:01:29.7]} 37. exd5 {[%clk 0:01:24.6]} 37...
Rxe1 {[%clk 0:01:28.6]} 38. Kxe1 {[%clk 0:01:20.1]} 38... exd6 {[%clk
0:01:28.7]} 39. Kf2 {[%clk 0:01:18.5]} 39... f5 {[%clk 0:01:23.4]} 40. gxf5
{[%clk 0:01:14.8]} 40... Bxf5 {[%clk 0:01:24.3]} 41. Bb5 {[%clk 0:01:12.5]}
41... Bc2 {[%clk 0:01:18.8]} 42. Bd7 {[%clk 0:01:03.7]} 42... Bd1 {[%clk
0:01:10.4]} 43. Bg4 {[%clk 0:01:03.4]} 43... Bb3 {[%clk 0:01:06.8]} 44. Be6
{[%clk 0:01:03.6]} 44... Bc2 {[%clk 0:01:05.2]} 45. Bg4 {[%clk 0:01:00.4]} 45...
Ba4 {[%clk 0:01:01.4]} 46. Be6 {[%clk 0:00:58.2]} 46... Be8 {[%clk 0:00:58.9]}
47. Bg4 {[%clk 0:00:57.6]} 47... Bf7 {[%clk 0:00:57.7]} 0-1

[Event "*** SCC Grand Prix: Titled Tuesday Blitz"]
[Site "Chess.com"]
[Date "2020.08.25"]
[Round "2"]
[White "PavelShkapenko"]
[Black "Matols"]
[Result "1-0"]
[WhiteElo "2624"]
[BlackElo "2257"]
[TimeControl "180+1"]
[EndTime "10:18:20 PDT"]
[Termination "PavelShkapenko won by resignation"]

1. e4 {[%clk 0:03:00.9]} 1... e6 {[%clk 0:02:58.6]} 2. d4 {[%clk 0:03:00.5]}
2... d5 {[%clk 0:02:58.7]} 3. exd5 {[%clk 0:03:01.1]} 3... exd5 {[%clk
0:02:58.2]} 4. Nf3 {[%clk 0:03:01.6]} 4... Bd6 {[%clk 0:02:56.1]} 5. c4 {[%clk
0:03:01.4]} 5... dxc4 {[%clk 0:02:54.9]} 6. Bxc4 {[%clk 0:03:01]} 6... Nf6
{[%clk 0:02:54.6]} 7. O-O {[%clk 0:03:00.2]} 7... O-O {[%clk 0:02:54.3]} 8. Nc3
{[%clk 0:03:00.6]} 8... Bg4 {[%clk 0:02:53.5]} 9. h3 {[%clk 0:03:00.5]} 9... Bh5
{[%clk 0:02:52.4]} 10. g4 {[%clk 0:02:59.3]} 10... Bg6 {[%clk 0:02:51.4]} 11.
Ne5 {[%clk 0:02:59.9]} 11... Nbd7 {[%clk 0:02:37.1]} 12. f4 {[%clk 0:02:58.6]}
12... c5 {[%clk 0:02:07.4]} 13. Nxd7 {[%clk 0:02:34.5]} 13... Nxd7 {[%clk
0:01:51.6]} 14. f5 {[%clk 0:02:15.3]} 14... cxd4 {[%clk 0:01:47.5]} 15. fxg6
{[%clk 0:02:07.6]} 15... Qh4 {[%clk 0:01:00.7]} 16. gxf7+ {[%clk 0:01:44.2]}
16... Kh8 {[%clk 0:00:58.3]} 17. Ne4 {[%clk 0:01:25.6]} 17... Qxh3 {[%clk
0:00:56.3]} 18. Qe2 {[%clk 0:01:20.8]} 18... d3 {[%clk 0:00:28.8]} 19. Qg2
{[%clk 0:01:18.7]} 19... Qxg2+ {[%clk 0:00:13.5]} 20. Kxg2 {[%clk 0:01:18.6]}
20... Be5 {[%clk 0:00:11.9]} 21. Bxd3 {[%clk 0:01:09.2]} 21... Rac8 {[%clk
0:00:11.4]} 22. Be3 {[%clk 0:01:04.6]} 22... Bxb2 {[%clk 0:00:10.1]} 23. Rab1
{[%clk 0:01:04.4]} 23... Be5 {[%clk 0:00:06.8]} 24. Rxb7 {[%clk 0:01:02.4]}
24... Nf6 {[%clk 0:00:06.6]} 25. Nxf6 {[%clk 0:01:01.3]} 25... gxf6 {[%clk
0:00:06.4]} 26. Bh6 {[%clk 0:00:59.1]} 1-0

[Event "*** SCC Grand Prix: Titled Tuesday Blitz"]
[Site "Chess.com"]
[Date "2020.08.25"]
[Round "2"]
[White "Zkid"]
[Black "Chessdreamer2020"]
[Result "1-0"]
[WhiteElo "2840"]
[BlackElo "2521"]
[TimeControl "180+1"]
[EndTime "10:18:21 PDT"]
[Termination "Zkid won by resignation"]

1. c4 {[%clk 0:03:00.9]} 1... d6 {[%clk 0:02:56.4]} 2. g3 {[%clk 0:03:00.3]}
2... g6 {[%clk 0:02:54.5]} 3. Bg2 {[%clk 0:03:00.4]} 3... Bg7 {[%clk 0:02:54.7]}
4. Nc3 {[%clk 0:03:00.8]} 4... e5 {[%clk 0:02:51.2]} 5. b4 {[%clk 0:02:55.4]}
5... a5 {[%clk 0:02:49.1]} 6. b5 {[%clk 0:02:54.7]} 6... Ne7 {[%clk 0:02:45.7]}
7. e3 {[%clk 0:02:49.6]} 7... O-O {[%clk 0:02:43.8]} 8. Nge2 {[%clk 0:02:49.2]}
8... c6 {[%clk 0:02:41]} 9. O-O {[%clk 0:02:44.1]} 9... Be6 {[%clk 0:02:40.4]}
10. d3 {[%clk 0:02:42.7]} 10... Nd7 {[%clk 0:02:39.4]} 11. Ba3 {[%clk
0:02:40.7]} 11... Qc7 {[%clk 0:02:36]} 12. Ne4 {[%clk 0:02:27.8]} 12... c5
{[%clk 0:02:26]} 13. Ng5 {[%clk 0:02:07.6]} 13... Bf5 {[%clk 0:02:15.3]} 14. e4
{[%clk 0:02:05.2]} 14... Bg4 {[%clk 0:02:01.3]} 15. f3 {[%clk 0:02:00.2]} 15...
Be6 {[%clk 0:01:40.9]} 16. Bc1 {[%clk 0:01:50.8]} 16... Rae8 {[%clk 0:01:33.4]}
17. Nxe6 {[%clk 0:01:47.3]} 17... fxe6 {[%clk 0:01:33.2]} 18. Bh3 {[%clk
0:01:45.9]} 18... Nc8 {[%clk 0:01:30.6]} 19. Be3 {[%clk 0:01:44.4]} 19... Rf7
{[%clk 0:01:24.3]} 20. Qd2 {[%clk 0:01:42.1]} 20... Nf8 {[%clk 0:01:24.1]} 21.
Rf2 {[%clk 0:01:41]} 21... b6 {[%clk 0:01:23.7]} 22. Raf1 {[%clk 0:01:40.5]}
22... Qe7 {[%clk 0:01:06.1]} 23. Kh1 {[%clk 0:01:37.4]} 23... Nd7 {[%clk
0:00:59.1]} 24. f4 {[%clk 0:01:30.3]} 24... Ref8 {[%clk 0:00:57.6]} 25. f5
{[%clk 0:01:25.5]} 25... exf5 {[%clk 0:00:55.9]} 26. exf5 {[%clk 0:01:26.4]}
26... gxf5 {[%clk 0:00:52.8]} 27. Bxf5 {[%clk 0:01:27.3]} 27... Qd8 {[%clk
0:00:37]} 28. Be6 {[%clk 0:01:26.2]} 28... Nf6 {[%clk 0:00:35]} 29. Bg5 {[%clk
0:01:20.8]} 29... Qe7 {[%clk 0:00:31.8]} 30. Bxf7+ {[%clk 0:01:19.3]} 30... Rxf7
{[%clk 0:00:31.9]} 31. Nc3 {[%clk 0:01:18.5]} 31... Qe6 {[%clk 0:00:30.8]} 32.
Bxf6 {[%clk 0:01:00]} 32... Rxf6 {[%clk 0:00:30.8]} 33. Rxf6 {[%clk 0:00:59.3]}
33... Bxf6 {[%clk 0:00:31.4]} 34. Nd5 {[%clk 0:00:59.9]} 34... Bg7 {[%clk
0:00:31.8]} 35. Qg5 {[%clk 0:00:59.5]} 1-0

[Event "*** SCC Grand Prix: Titled Tuesday Blitz"]
[Site "Chess.com"]
[Date "2020.08.25"]
[Round "2"]
[White "Aleksey_Sorokin"]
[Black "AlexSuv"]
[Result "1-0"]
[WhiteElo "2723"]
[BlackElo "2483"]
[TimeControl "180+1"]
[EndTime "10:18:21 PDT"]
[Termination "Aleksey_Sorokin won by resignation"]

1. d4 {[%clk 0:03:00.9]} 1... Nf6 {[%clk 0:02:55.2]} 2. c4 {[%clk 0:03:00.9]}
2... e6 {[%clk 0:02:55.4]} 3. Nf3 {[%clk 0:03:00.9]} 3... d5 {[%clk 0:02:54.9]}
4. g3 {[%clk 0:03:00.8]} 4... dxc4 {[%clk 0:02:54.5]} 5. Bg2 {[%clk 0:02:59.3]}
5... Nc6 {[%clk 0:02:55.1]} 6. O-O {[%clk 0:02:56.4]} 6... Rb8 {[%clk
0:02:55.4]} 7. e3 {[%clk 0:02:53.7]} 7... Be7 {[%clk 0:02:55.9]} 8. Qe2 {[%clk
0:02:53.2]} 8... b5 {[%clk 0:02:52.7]} 9. Rd1 {[%clk 0:02:49.3]} 9... O-O {[%clk
0:02:49.5]} 10. e4 {[%clk 0:02:47.4]} 10... Bb7 {[%clk 0:02:45.9]} 11. a4 {[%clk
0:02:47.1]} 11... a6 {[%clk 0:02:44.2]} 12. Nc3 {[%clk 0:02:47.1]} 12... b4
{[%clk 0:02:35.6]} 13. Nb1 {[%clk 0:02:44.5]} 13... Na5 {[%clk 0:02:34.1]} 14.
Ne5 {[%clk 0:02:43.3]} 14... Nb3 {[%clk 0:02:26]} 15. Ra2 {[%clk 0:02:36.8]}
15... Nxc1 {[%clk 0:02:26]} 16. Rxc1 {[%clk 0:02:37.7]} 16... Qxd4 {[%clk
0:02:25.9]} 17. Nxc4 {[%clk 0:02:30.8]} 17... Rfd8 {[%clk 0:01:57.3]} 18. Nbd2
{[%clk 0:02:30.8]} 18... Qd3 {[%clk 0:01:44.8]} 19. Qe1 {[%clk 0:02:28.4]} 19...
Bc5 {[%clk 0:01:28.4]} 20. Bf1 {[%clk 0:02:19.5]} 20... Qd7 {[%clk 0:01:21.4]}
21. h3 {[%clk 0:02:11.8]} 21... Ba7 {[%clk 0:01:15.5]} 22. Bg2 {[%clk
0:02:09.8]} 22... Qd4 {[%clk 0:01:08]} 23. b3 {[%clk 0:02:06.9]} 23... Qd3
{[%clk 0:01:05.6]} 24. Kh2 {[%clk 0:02:04]} 24... h5 {[%clk 0:01:04.8]} 25. e5
{[%clk 0:01:59.7]} 25... Bxg2 {[%clk 0:00:57]} 26. Kxg2 {[%clk 0:01:59.3]} 26...
Nd5 {[%clk 0:00:56.9]} 27. Ne4 {[%clk 0:01:57.6]} 27... Qxb3 {[%clk 0:00:53.2]}
28. Raa1 {[%clk 0:01:51.5]} 28... h4 {[%clk 0:00:52.4]} 29. Na5 {[%clk 0:01:48]}
29... Qb2 {[%clk 0:00:42.6]} 30. Nc6 {[%clk 0:01:39.8]} 30... hxg3 {[%clk
0:00:42.4]} 31. Nxa7 {[%clk 0:01:27]} 31... Nf4+ {[%clk 0:00:41.5]} 32. Kxg3
{[%clk 0:01:25.5]} 32... Qxe5 {[%clk 0:00:41.4]} 33. Nc6 {[%clk 0:01:16.7]}
33... Rd3+ {[%clk 0:00:30.9]} 34. f3 {[%clk 0:01:09.5]} 34... Ne2+ {[%clk
0:00:28.4]} 35. Kf2 {[%clk 0:01:02.9]} 35... Qh2+ {[%clk 0:00:27.4]} 36. Kf1
{[%clk 0:00:59.6]} 36... Ng3+ {[%clk 0:00:26.8]} 37. Qxg3 {[%clk 0:00:58.8]}
37... Qh1+ {[%clk 0:00:24.2]} 38. Ke2 {[%clk 0:00:59]} 1-0

[Event "*** SCC Grand Prix: Titled Tuesday Blitz"]
[Site "Chess.com"]
[Date "2020.08.25"]
[Round "2"]
[White "DishonorOnYourCow"]
[Black "anskam"]
[Result "1-0"]
[WhiteElo "2342"]
[BlackElo "1642"]
[TimeControl "180+1"]
[EndTime "10:18:22 PDT"]
[Termination "DishonorOnYourCow won by checkmate"]

1. d4 {[%clk 0:03:00.9]} 1... Nf6 {[%clk 0:02:59]} 2. c4 {[%clk 0:03:00.6]} 2...
g6 {[%clk 0:02:58.7]} 3. Nc3 {[%clk 0:02:59.9]} 3... Bg7 {[%clk 0:02:58.4]} 4.
e4 {[%clk 0:03:00.1]} 4... d6 {[%clk 0:02:58.1]} 5. f4 {[%clk 0:03:00.5]} 5...
Nbd7 {[%clk 0:02:55.3]} 6. Nf3 {[%clk 0:03:01]} 6... O-O {[%clk 0:02:54.8]} 7.
Bd3 {[%clk 0:02:59.8]} 7... c5 {[%clk 0:02:54.1]} 8. d5 {[%clk 0:03:00]} 8... e5
{[%clk 0:02:53.4]} 9. dxe6 {[%clk 0:02:59.8]} 9... fxe6 {[%clk 0:02:52.7]} 10.
O-O {[%clk 0:03:00.2]} 10... e5 {[%clk 0:02:52.1]} 11. f5 {[%clk 0:02:55.5]}
11... Nb6 {[%clk 0:02:49.2]} 12. fxg6 {[%clk 0:02:38.4]} 12... hxg6 {[%clk
0:02:48.3]} 13. Nh4 {[%clk 0:02:38.8]} 13... Bg4 {[%clk 0:02:46]} 14. Qe1 {[%clk
0:02:36.4]} 14... Bh5 {[%clk 0:02:43.6]} 15. Bg5 {[%clk 0:02:36.3]} 15... Qe8
{[%clk 0:02:41]} 16. Qg3 {[%clk 0:02:28.4]} 16... Nh7 {[%clk 0:02:39]} 17. Be3
{[%clk 0:02:22.5]} 17... Qd7 {[%clk 0:02:33]} 18. Nxg6 {[%clk 0:02:18.3]} 18...
Bxg6 {[%clk 0:02:31.1]} 19. Qxg6 {[%clk 0:02:17.8]} 19... Rf6 {[%clk 0:02:25.4]}
20. Rxf6 {[%clk 0:02:15.1]} 20... Nxf6 {[%clk 0:02:24.6]} 21. Rf1 {[%clk
0:02:14.8]} 21... Rf8 {[%clk 0:02:23.4]} 22. Nd5 {[%clk 0:01:52.9]} 22... Nbxd5
{[%clk 0:02:18]} 23. exd5 {[%clk 0:01:52]} 23... Qf7 {[%clk 0:02:13.5]} 24. Qg3
{[%clk 0:01:43.6]} 24... Qh5 {[%clk 0:02:11.1]} 25. Bg6 {[%clk 0:01:35.1]} 25...
Qg4 {[%clk 0:02:05.3]} 26. Qxg4 {[%clk 0:01:15.3]} 26... Nxg4 {[%clk 0:02:04.3]}
27. Rxf8+ {[%clk 0:01:15.6]} 27... Kxf8 {[%clk 0:02:02.8]} 28. Bg5 {[%clk
0:01:14.8]} 28... Nf6 {[%clk 0:01:59.2]} 29. h4 {[%clk 0:01:10.4]} 29... b6
{[%clk 0:01:57.4]} 30. h5 {[%clk 0:01:10.6]} 30... Bh8 {[%clk 0:01:54.6]} 31.
Kf2 {[%clk 0:01:07.8]} 31... a6 {[%clk 0:01:54.2]} 32. a4 {[%clk 0:01:06.1]}
32... Kg7 {[%clk 0:01:50.4]} 33. Kf3 {[%clk 0:01:02.9]} 33... Kf8 {[%clk
0:01:49.2]} 34. g4 {[%clk 0:01:02.5]} 34... Kg7 {[%clk 0:01:48.1]} 35. Bd2
{[%clk 0:00:58.5]} 35... a5 {[%clk 0:01:46.5]} 36. g5 {[%clk 0:00:58]} 36... Nd7
{[%clk 0:01:42.4]} 37. Bf5 {[%clk 0:00:57.9]} 37... Kf7 {[%clk 0:01:38.9]} 38.
Bxd7 {[%clk 0:00:56.9]} 38... Ke7 {[%clk 0:01:36.6]} 39. Be6 {[%clk 0:00:56.6]}
39... e4+ {[%clk 0:01:35.1]} 40. Kxe4 {[%clk 0:00:56.4]} 40... Bxb2 {[%clk
0:01:34.2]} 41. g6 {[%clk 0:00:56.9]} 41... Kf6 {[%clk 0:01:30.8]} 42. Bh6
{[%clk 0:00:55]} 42... Ke7 {[%clk 0:01:25.2]} 43. g7 {[%clk 0:00:55]} 43... Bxg7
{[%clk 0:01:23.9]} 44. Bxg7 {[%clk 0:00:55.9]} 44... b5 {[%clk 0:01:23.1]} 45.
cxb5 {[%clk 0:00:54.9]} 45... c4 {[%clk 0:01:22.5]} 46. h6 {[%clk 0:00:54.1]}
46... c3 {[%clk 0:01:20.8]} 47. Bxc3 {[%clk 0:00:54]} 47... Kf8 {[%clk
0:01:17.8]} 48. h7 {[%clk 0:00:53.7]} 48... Ke7 {[%clk 0:01:16.6]} 49. Bg7
{[%clk 0:00:51.7]} 49... Kd8 {[%clk 0:01:12.6]} 50. h8=Q+ {[%clk 0:00:50.8]}
50... Ke7 {[%clk 0:01:12.7]} 51. Qf8# {[%clk 0:00:48.8]} 1-0

[Event "*** SCC Grand Prix: Titled Tuesday Blitz"]
[Site "Chess.com"]
[Date "2020.08.25"]
[Round "2"]
[White "SmirnovAlexandrA"]
[Black "VishnuPrasanna"]
[Result "1-0"]
[WhiteElo "2319"]
[BlackElo "2638"]
[TimeControl "180+1"]
[EndTime "10:18:28 PDT"]
[Termination "SmirnovAlexandrA won by resignation"]

1. e4 {[%clk 0:03:00.9]} 1... c5 {[%clk 0:02:59.9]} 2. Nf3 {[%clk 0:02:58.9]}
2... d6 {[%clk 0:03:00.8]} 3. d4 {[%clk 0:02:57.8]} 3... cxd4 {[%clk 0:02:51.9]}
4. Nxd4 {[%clk 0:02:56.8]} 4... Nf6 {[%clk 0:02:52.5]} 5. Nc3 {[%clk 0:02:55.5]}
5... Nc6 {[%clk 0:02:52.2]} 6. Bg5 {[%clk 0:02:50.2]} 6... e6 {[%clk 0:02:51.3]}
7. Qd2 {[%clk 0:02:47]} 7... Be7 {[%clk 0:02:51.8]} 8. f3 {[%clk 0:02:42.8]}
8... O-O {[%clk 0:02:51.7]} 9. h4 {[%clk 0:02:39.6]} 9... a6 {[%clk 0:02:48.7]}
10. g4 {[%clk 0:02:28.4]} 10... Nxd4 {[%clk 0:02:44.8]} 11. Qxd4 {[%clk
0:02:27.7]} 11... b5 {[%clk 0:02:45.4]} 12. O-O-O {[%clk 0:02:21.3]} 12... Bb7
{[%clk 0:02:45.4]} 13. Kb1 {[%clk 0:02:20.4]} 13... Rc8 {[%clk 0:02:44.8]} 14.
Bd3 {[%clk 0:02:16.1]} 14... Nd7 {[%clk 0:02:44.3]} 15. Bxe7 {[%clk 0:02:14.2]}
15... Qxe7 {[%clk 0:02:45.2]} 16. g5 {[%clk 0:02:09.9]} 16... Rfd8 {[%clk
0:02:36.4]} 17. Rdg1 {[%clk 0:01:59.4]} 17... Nc5 {[%clk 0:02:33.4]} 18. h5
{[%clk 0:01:58.4]} 18... e5 {[%clk 0:02:31.6]} 19. Qe3 {[%clk 0:01:55.1]} 19...
d5 {[%clk 0:02:15.9]} 20. exd5 {[%clk 0:01:54.5]} 20... Nxd3 {[%clk 0:02:14.8]}
21. Qxd3 {[%clk 0:01:53.5]} 21... Rc4 {[%clk 0:02:10.1]} 22. g6 {[%clk
0:01:50.3]} 22... fxg6 {[%clk 0:02:10]} 23. hxg6 {[%clk 0:01:49.4]} 23... h6
{[%clk 0:02:10.6]} 24. Rd1 {[%clk 0:01:40.1]} 24... Qc5 {[%clk 0:01:54.8]} 25.
Qf5 {[%clk 0:01:16.1]} 25... Qe7 {[%clk 0:01:52.4]} 26. Rhe1 {[%clk 0:01:09.7]}
26... b4 {[%clk 0:01:37.8]} 27. Rxe5 {[%clk 0:01:02.2]} 27... Qf8 {[%clk
0:01:36.9]} 28. Qe6+ {[%clk 0:00:46.2]} 28... Kh8 {[%clk 0:01:36.4]} 29. d6
{[%clk 0:00:43.1]} 29... bxc3 {[%clk 0:01:33.8]} 30. Qxc4 {[%clk 0:00:42.2]}
30... Qxf3 {[%clk 0:01:31.8]} 31. Qd3 {[%clk 0:00:35.6]} 31... Qf6 {[%clk
0:01:26.9]} 32. Rc5 {[%clk 0:00:30.9]} 32... cxb2 {[%clk 0:01:24.1]} 33. Rc7
{[%clk 0:00:30.8]} 33... Bg2 {[%clk 0:01:22.4]} 34. Qd4 {[%clk 0:00:29.2]} 34...
Qxg6 {[%clk 0:01:21.8]} 35. d7 {[%clk 0:00:27.8]} 35... Bh3 {[%clk 0:01:21.2]}
36. Rc8 {[%clk 0:00:26.5]} 36... Qg5 {[%clk 0:01:12.3]} 37. Rxd8+ {[%clk
0:00:26]} 37... Qxd8 {[%clk 0:01:12.1]} 38. Qe5 {[%clk 0:00:23.3]} 38... Kh7
{[%clk 0:01:09.6]} 39. Qe8 {[%clk 0:00:22.1]} 1-0

[Event "*** SCC Grand Prix: Titled Tuesday Blitz"]
[Site "Chess.com"]
[Date "2020.08.25"]
[Round "2"]
[White "Kotofeyca"]
[Black "Marty435"]
[Result "1-0"]
[WhiteElo "2333"]
[BlackElo "2619"]
[TimeControl "180+1"]
[EndTime "10:18:33 PDT"]
[Termination "Kotofeyca won by resignation"]

1. d4 {[%clk 0:03:00.9]} 1... Nf6 {[%clk 0:03:00.2]} 2. c4 {[%clk 0:03:01]} 2...
e6 {[%clk 0:03:00.5]} 3. Nf3 {[%clk 0:03:00.8]} 3... d5 {[%clk 0:03:00.3]} 4.
Nc3 {[%clk 0:03:00.4]} 4... b6 {[%clk 0:02:56.1]} 5. cxd5 {[%clk 0:03:00]} 5...
Nxd5 {[%clk 0:02:54.9]} 6. g3 {[%clk 0:02:54.1]} 6... Bb7 {[%clk 0:02:54.8]} 7.
Bg2 {[%clk 0:02:54.3]} 7... Be7 {[%clk 0:02:47.7]} 8. O-O {[%clk 0:02:54]} 8...
O-O {[%clk 0:02:48.2]} 9. Nxd5 {[%clk 0:02:44]} 9... Bxd5 {[%clk 0:02:44.9]} 10.
Be3 {[%clk 0:02:28.6]} 10... Nd7 {[%clk 0:02:35]} 11. Qd3 {[%clk 0:02:27.1]}
11... c5 {[%clk 0:02:32.3]} 12. Rfd1 {[%clk 0:02:26.7]} 12... Rc8 {[%clk
0:02:28.2]} 13. a3 {[%clk 0:02:22.7]} 13... Qc7 {[%clk 0:02:20.7]} 14. Rac1
{[%clk 0:02:18.3]} 14... Qb7 {[%clk 0:02:19.9]} 15. Ne1 {[%clk 0:01:56]} 15...
Rfd8 {[%clk 0:02:06.3]} 16. Bxd5 {[%clk 0:01:50.8]} 16... exd5 {[%clk
0:02:06.6]} 17. dxc5 {[%clk 0:01:48.6]} 17... Nxc5 {[%clk 0:02:07]} 18. Qf5
{[%clk 0:01:40.7]} 18... Bf6 {[%clk 0:01:54.9]} 19. Bd4 {[%clk 0:01:26.2]} 19...
Bxd4 {[%clk 0:01:54.5]} 20. Rxd4 {[%clk 0:01:26.3]} 20... g6 {[%clk 0:01:38.7]}
21. Qf3 {[%clk 0:01:19.2]} 21... Rc6 {[%clk 0:01:09.5]} 22. Rxd5 {[%clk
0:01:10.1]} 22... Re8 {[%clk 0:00:55]} 23. Rcd1 {[%clk 0:00:55.9]} 23... Rce6
{[%clk 0:00:39.5]} 24. b4 {[%clk 0:00:42.8]} 24... Ne4 {[%clk 0:00:38.3]} 25.
Rd7 {[%clk 0:00:37.8]} 25... Ng5 {[%clk 0:00:10.7]} 26. Qxb7 {[%clk 0:00:36.9]}
1-0